[Event "Titled Tuesday Blitz April 4 Late 2023"]
[White "Ortega Amarelle, Mariano"]
[Black "Novikova, Galina"]
[WhiteFideId "3504301"]
[BlackFideId "4157095"]
[WhiteElo "2406"]
[BlackElo "1953"]
[Result "1-0"]
[Round "02"]
[TimeControl "180+2"]
[Date "2023.04.04"]
[WhiteClock "0:01:17"]
[BlackClock "0:00:40"]

1. e4 {[%clk 0:03:00]}  e6 {[%clk 0:03:00]} 2. d4 {[%clk 0:03:00]}  d5 {[%clk 0:03:01]} 3. e5 {[%clk 0:03:00]}  c5 {[%clk 0:03:00]} 4. c3 {[%clk 0:03:01]}  Nc6 {[%clk 0:03:00]} 5. Nf3 {[%clk 0:03:01]}  Bd7 {[%clk 0:03:01]} 6. Bd3 {[%clk 0:03:00]}  Qc7 {[%clk 0:03:01]} 7. a3 {[%clk 0:02:56]}  f6 {[%clk 0:03:01]} 8. Qe2 {[%clk 0:02:52]}  O-O-O {[%clk 0:03:00]} 9. h4 {[%clk 0:02:45]}  h6 {[%clk 0:02:46]} 10. Bf4 {[%clk 0:02:44]}  f5 {[%clk 0:02:46]} 11. h5 {[%clk 0:02:41]}  Kb8 {[%clk 0:02:35]} 12. dxc5 {[%clk 0:02:40]}  Bxc5 {[%clk 0:02:33]} 13. b4 {[%clk 0:02:40]}  Bb6 {[%clk 0:02:19]} 14. Nbd2 {[%clk 0:02:40]}  Nge7 {[%clk 0:02:15]} 15. Nh4 {[%clk 0:02:35]}  Be8 {[%clk 0:02:13]} 16. a4 {[%clk 0:02:32]}  a5 {[%clk 0:02:12]} 17. b5 {[%clk 0:02:32]}  Na7 {[%clk 0:02:12]} 18. c4 {[%clk 0:02:25]}  Ka8 {[%clk 0:01:32]} 19. Rc1 {[%clk 0:02:19]}  Bd4 {[%clk 0:01:29]} 20. Nb3 {[%clk 0:02:16]}  Bxh5 {[%clk 0:01:19]} 21. Qxh5 {[%clk 0:02:09]}  Bxe5 {[%clk 0:01:19]} 22. Bxe5 {[%clk 0:02:04]}  Qxe5+ {[%clk 0:01:20]} 23. Qe2 {[%clk 0:02:04]}  Qf6 {[%clk 0:01:16]} 24. Nf3 {[%clk 0:01:55]}  g5 {[%clk 0:01:15]} 25. Ne5 {[%clk 0:01:52]}  Ng6 {[%clk 0:01:15]} 26. Nxg6 {[%clk 0:01:52]}  Qxg6 {[%clk 0:01:16]} 27. Nxa5 {[%clk 0:01:47]}  e5 {[%clk 0:01:14]} 28. cxd5 {[%clk 0:01:40]}  Rxd5 {[%clk 0:01:10]} 29. Bc4 {[%clk 0:01:38]}  Rdd8 {[%clk 0:00:58]} 30. O-O {[%clk 0:01:38]}  e4 {[%clk 0:00:56]} 31. Rfd1 {[%clk 0:01:24]}  h5 {[%clk 0:00:55]} 32. Bd5 {[%clk 0:01:24]}  Rd7 {[%clk 0:00:42]} 33. Nxb7 {[%clk 0:01:22]}  Rxb7 {[%clk 0:00:43]} 34. Rc7 {[%clk 0:01:21]}  Rb8 {[%clk 0:00:42]} 35. Rxb7 {[%clk 0:01:20]}  Rxb7 {[%clk 0:00:43]} 36. Qc4 {[%clk 0:01:19]}  Kb8 {[%clk 0:00:42]} 37. Bxb7 {[%clk 0:01:18]}  Kxb7 {[%clk 0:00:43]} 38. Rd7+ {[%clk 0:01:17]}  Ka8 {[%clk 0:00:40]} 39. Qd5+ {[%clk 0:01:17]} 1-0


[Site "https://www.chess.com"]

[Event "Titled Tuesday Blitz April 4 Late 2023"]
[White "Kepeshchuk, Mykhaylo"]
[Black "Gutkin, Ilya"]
[WhiteFideId "14113139"]
[BlackFideId "16203470"]
[WhiteElo "2279"]
[BlackElo "2265"]
[Result "1-0"]
[Round "02"]
[TimeControl "180+2"]
[Date "2023.04.04"]
[WhiteClock "0:00:47"]
[BlackClock "0:00:03"]

1. d4 {[%clk 0:02:56]}  e6 {[%clk 0:03:00]} 2. c4 {[%clk 0:02:56]}  b6 {[%clk 0:03:00]} 3. Nf3 {[%clk 0:02:56]}  Bb7 {[%clk 0:03:00]} 4. g3 {[%clk 0:02:57]}  Bb4+ {[%clk 0:03:01]} 5. Nbd2 {[%clk 0:02:56]}  f5 {[%clk 0:02:58]} 6. Bg2 {[%clk 0:02:56]}  Nf6 {[%clk 0:02:59]} 7. O-O {[%clk 0:02:57]}  O-O {[%clk 0:02:55]} 8. a3 {[%clk 0:02:56]}  Be7 {[%clk 0:02:54]} 9. b4 {[%clk 0:02:55]}  Ne4 {[%clk 0:02:54]} 10. Bb2 {[%clk 0:02:55]}  Bf6 {[%clk 0:02:54]} 11. e3 {[%clk 0:02:54]}  d6 {[%clk 0:02:54]} 12. Qc2 {[%clk 0:02:52]}  Nxd2 {[%clk 0:02:51]} 13. Qxd2 {[%clk 0:02:49]}  Qe7 {[%clk 0:02:49]} 14. a4 {[%clk 0:02:49]}  c5 {[%clk 0:02:43]} 15. a5 {[%clk 0:02:45]}  Be4 {[%clk 0:02:33]} 16. axb6 {[%clk 0:02:36]}  Nc6 {[%clk 0:02:19]} 17. bxc5 {[%clk 0:02:26]}  dxc5 {[%clk 0:02:18]} 18. bxa7 {[%clk 0:02:13]}  Rxa7 {[%clk 0:02:15]} 19. Rxa7 {[%clk 0:02:09]}  Qxa7 {[%clk 0:02:16]} 20. Ra1 {[%clk 0:02:08]}  Qb6 {[%clk 0:02:13]} 21. dxc5 {[%clk 0:01:59]}  Qxb2 {[%clk 0:02:13]} 22. Qxb2 {[%clk 0:01:56]}  Bxb2 {[%clk 0:02:13]} 23. Ra6 {[%clk 0:01:53]}  Rd8 {[%clk 0:02:12]} 24. h4 {[%clk 0:01:45]}  Rd1+ {[%clk 0:01:52]} 25. Kh2 {[%clk 0:01:45]}  Ra1 {[%clk 0:01:52]} 26. Rb6 {[%clk 0:01:44]}  Bc3 {[%clk 0:01:41]} 27. Ng5 {[%clk 0:01:42]}  Bxg2 {[%clk 0:01:06]} 28. Kxg2 {[%clk 0:01:43]}  h6 {[%clk 0:01:05]} 29. Nxe6 {[%clk 0:01:43]}  Ne5 {[%clk 0:01:00]} 30. c6 {[%clk 0:01:37]}  Nxc4 {[%clk 0:00:39]} 31. Rb8+ {[%clk 0:01:32]}  Kf7 {[%clk 0:00:37]} 32. c7 {[%clk 0:01:32]}  Nd6 {[%clk 0:00:32]} 33. Nd8+ {[%clk 0:01:21]}  Ke7 {[%clk 0:00:30]} 34. Nb7 {[%clk 0:01:02]}  Kd7 {[%clk 0:00:23]} 35. Nxd6 {[%clk 0:00:58]}  Kxc7 {[%clk 0:00:24]} 36. Rc8+ {[%clk 0:00:58]}  Kxd6 {[%clk 0:00:25]} 37. Rxc3 {[%clk 0:00:58]}  g5 {[%clk 0:00:21]} 38. hxg5 {[%clk 0:00:56]}  hxg5 {[%clk 0:00:22]} 39. g4 {[%clk 0:00:57]}  fxg4 {[%clk 0:00:18]} 40. Rc4 {[%clk 0:00:54]}  Ke5 {[%clk 0:00:19]} 41. Rxg4 {[%clk 0:00:55]}  Kf5 {[%clk 0:00:19]} 42. Rb4 {[%clk 0:00:55]}  Ke5 {[%clk 0:00:19]} 43. Kf3 {[%clk 0:00:55]}  Kf5 {[%clk 0:00:18]} 44. Rb5+ {[%clk 0:00:55]}  Kg6 {[%clk 0:00:18]} 45. Ke4 {[%clk 0:00:52]}  Ra2 {[%clk 0:00:12]} 46. Kf3 {[%clk 0:00:50]}  Kf6 {[%clk 0:00:11]} 47. Rd5 {[%clk 0:00:50]}  Kg6 {[%clk 0:00:10]} 48. Kg3 {[%clk 0:00:51]}  Kf6 {[%clk 0:00:11]} 49. f3 {[%clk 0:00:51]}  Ra3 {[%clk 0:00:11]} 50. e4 {[%clk 0:00:50]}  Ra1 {[%clk 0:00:11]} 51. Rd6+ {[%clk 0:00:49]}  Ke5 {[%clk 0:00:06]} 52. Rg6 {[%clk 0:00:47]}  Rg1+ {[%clk 0:00:06]} 53. Kf2 {[%clk 0:00:47]}  Rh1 {[%clk 0:00:04]} 54. Rxg5+ {[%clk 0:00:47]}  Kd4 {[%clk 0:00:03]} 55. Rd5+ {[%clk 0:00:46]}  Kc4 {[%clk 0:00:03]} 56. Ke3 {[%clk 0:00:47]} 1-0


[Site "https://www.chess.com"]

[Event "Titled Tuesday Blitz April 4 Late 2023"]
[White "K2JW"]
[Black "Bruedigam, Martin"]
[BlackFideId "24608033"]
[WhiteElo "2326"]
[BlackElo "2331"]
[Result "0-1"]
[Round "02"]
[TimeControl "180+2"]
[Date "2023.04.04"]
[WhiteClock "0:00:20"]
[BlackClock "0:00:53"]

1. d4 {[%clk 0:03:00]}  Nf6 {[%clk 0:02:59]} 2. c4 {[%clk 0:03:00]}  e6 {[%clk 0:02:59]} 3. Nf3 {[%clk 0:03:01]}  a6 {[%clk 0:02:59]} 4. e3 {[%clk 0:02:52]}  d5 {[%clk 0:02:59]} 5. c5 {[%clk 0:02:48]}  b6 {[%clk 0:02:58]} 6. cxb6 {[%clk 0:02:48]}  c5 {[%clk 0:02:59]} 7. Nc3 {[%clk 0:02:45]}  cxd4 {[%clk 0:02:53]} 8. Qxd4 {[%clk 0:02:34]}  Nc6 {[%clk 0:02:50]} 9. Qa4 {[%clk 0:02:22]}  Qxb6 {[%clk 0:02:50]} 10. Bb5 {[%clk 0:02:22]}  Bb7 {[%clk 0:02:46]} 11. Bxc6+ {[%clk 0:02:10]}  Qxc6 {[%clk 0:02:46]} 12. Qxc6+ {[%clk 0:02:08]}  Bxc6 {[%clk 0:02:47]} 13. O-O {[%clk 0:02:07]}  Bd6 {[%clk 0:02:46]} 14. b3 {[%clk 0:02:06]}  Ke7 {[%clk 0:02:44]} 15. Bb2 {[%clk 0:02:06]}  Rhc8 {[%clk 0:02:43]} 16. Rac1 {[%clk 0:02:04]}  Rc7 {[%clk 0:02:42]} 17. Nd4 {[%clk 0:01:56]}  Bd7 {[%clk 0:02:41]} 18. Rfd1 {[%clk 0:01:52]}  Rac8 {[%clk 0:02:40]} 19. Nce2 {[%clk 0:01:52]}  Ne4 {[%clk 0:02:26]} 20. f3 {[%clk 0:01:47]}  Rxc1 {[%clk 0:02:13]} 21. Rxc1 {[%clk 0:01:47]}  Rxc1+ {[%clk 0:02:13]} 22. Bxc1 {[%clk 0:01:47]}  Nc5 {[%clk 0:02:13]} 23. Ba3 {[%clk 0:01:41]}  e5 {[%clk 0:02:06]} 24. Nc2 {[%clk 0:01:38]}  Bc6 {[%clk 0:02:01]} 25. Nc3 {[%clk 0:01:32]}  Ke6 {[%clk 0:01:59]} 26. Kf1 {[%clk 0:01:22]}  h5 {[%clk 0:01:46]} 27. Ke2 {[%clk 0:01:19]}  h4 {[%clk 0:01:46]} 28. h3 {[%clk 0:01:10]}  g5 {[%clk 0:01:43]} 29. Kd2 {[%clk 0:01:05]}  f5 {[%clk 0:01:41]} 30. Nb4 {[%clk 0:00:56]}  Bb7 {[%clk 0:01:39]} 31. Kc2 {[%clk 0:00:54]}  a5 {[%clk 0:01:34]} 32. Nd3 {[%clk 0:00:53]}  Nxd3 {[%clk 0:01:35]} 33. Bxd6 {[%clk 0:00:52]}  Ne1+ {[%clk 0:01:35]} 34. Kd2 {[%clk 0:00:52]}  Nxg2 {[%clk 0:01:31]} 35. Bc7 {[%clk 0:00:49]}  Nxe3 {[%clk 0:01:22]} 36. Kxe3 {[%clk 0:00:42]}  d4+ {[%clk 0:01:22]} 37. Kd2 {[%clk 0:00:42]}  dxc3+ {[%clk 0:01:23]} 38. Kxc3 {[%clk 0:00:42]}  Bxf3 {[%clk 0:01:22]} 39. Kd2 {[%clk 0:00:42]}  g4 {[%clk 0:01:20]} 40. Ke3 {[%clk 0:00:39]}  Bd5 {[%clk 0:01:09]} 41. Kf2 {[%clk 0:00:34]}  g3+ {[%clk 0:01:06]} 42. Kf1 {[%clk 0:00:30]}  f4 {[%clk 0:01:04]} 43. Bxa5 {[%clk 0:00:30]}  Kf5 {[%clk 0:00:59]} 44. Bc3 {[%clk 0:00:25]}  e4 {[%clk 0:00:58]} 45. Bd4 {[%clk 0:00:21]}  e3 {[%clk 0:00:57]} 46. Ke2 {[%clk 0:00:22]}  Ke4 {[%clk 0:00:56]} 47. Bc5 {[%clk 0:00:21]}  f3+ {[%clk 0:00:56]} 48. Kf1 {[%clk 0:00:20]}  Be6 {[%clk 0:00:53]} 0-1


[Site "https://www.chess.com"]

[Event "Titled Tuesday Blitz April 4 Late 2023"]
[White "Richter, Paul"]
[Black "Kirillov, Dmitry"]
[WhiteFideId "2046350"]
[BlackFideId "34180572"]
[WhiteElo "2527"]
[BlackElo "2111"]
[Result "1-0"]
[Round "02"]
[TimeControl "180+2"]
[Date "2023.04.04"]
[WhiteClock "0:00:41"]
[BlackClock "0:00:35"]

1. e4 {[%clk 0:03:00]}  Nf6 {[%clk 0:02:55]} 2. e5 {[%clk 0:03:00]}  Nd5 {[%clk 0:02:55]} 3. c4 {[%clk 0:03:00]}  Nb6 {[%clk 0:02:55]} 4. d4 {[%clk 0:03:01]}  d6 {[%clk 0:02:55]} 5. exd6 {[%clk 0:03:01]}  cxd6 {[%clk 0:02:55]} 6. Nc3 {[%clk 0:03:02]}  g6 {[%clk 0:02:55]} 7. Be3 {[%clk 0:03:02]}  Bg7 {[%clk 0:02:55]} 8. Rc1 {[%clk 0:03:03]}  O-O {[%clk 0:02:55]} 9. b3 {[%clk 0:03:02]}  Nc6 {[%clk 0:02:54]} 10. d5 {[%clk 0:03:02]}  Ne5 {[%clk 0:02:51]} 11. Be2 {[%clk 0:03:02]}  f5 {[%clk 0:02:45]} 12. g3 {[%clk 0:03:01]}  Ng4 {[%clk 0:02:42]} 13. Bxg4 {[%clk 0:02:56]}  fxg4 {[%clk 0:02:43]} 14. Nge2 {[%clk 0:02:54]}  e5 {[%clk 0:02:35]} 15. dxe6 {[%clk 0:02:49]}  Bxe6 {[%clk 0:02:35]} 16. Nf4 {[%clk 0:02:47]}  Bf5 {[%clk 0:02:32]} 17. O-O {[%clk 0:02:46]}  g5 {[%clk 0:01:54]} 18. Nfd5 {[%clk 0:02:43]}  Nd7 {[%clk 0:01:51]} 19. Bd4 {[%clk 0:02:32]}  Ne5 {[%clk 0:01:50]} 20. Bxe5 {[%clk 0:02:32]}  Bxe5 {[%clk 0:01:50]} 21. Re1 {[%clk 0:02:26]}  h5 {[%clk 0:01:48]} 22. Qd2 {[%clk 0:02:24]}  Kg7 {[%clk 0:01:44]} 23. Nb5 {[%clk 0:02:18]}  h4 {[%clk 0:01:28]} 24. Rxe5 {[%clk 0:01:38]}  dxe5 {[%clk 0:01:26]} 25. Qe3 {[%clk 0:01:38]}  e4 {[%clk 0:01:08]} 26. Qd4+ {[%clk 0:01:36]}  Kg6 {[%clk 0:01:03]} 27. Re1 {[%clk 0:01:23]}  a6 {[%clk 0:01:01]} 28. Nbc7 {[%clk 0:00:52]}  Rc8 {[%clk 0:01:00]} 29. Qe5 {[%clk 0:00:48]}  Re8 {[%clk 0:00:46]} 30. Nxe8 {[%clk 0:00:46]}  Qxe8 {[%clk 0:00:35]} 31. Ne7+ {[%clk 0:00:41]} 1-0


[Site "https://www.chess.com"]

[Event "Titled Tuesday Blitz April 4 Late 2023"]
[White "Romero Ruscalleda, Josep"]
[Black "Zeynalli, Rashad"]
[WhiteFideId "2231859"]
[BlackFideId "13403320"]
[WhiteElo "2183"]
[BlackElo "2125"]
[Result "1-0"]
[Round "02"]
[TimeControl "180+2"]
[Date "2023.04.04"]
[WhiteClock "0:01:07"]
[BlackClock "0:00:14"]

1. e4 {[%clk 0:03:00]}  c5 {[%clk 0:02:58]} 2. c3 {[%clk 0:03:00]}  Nf6 {[%clk 0:02:57]} 3. e5 {[%clk 0:03:00]}  Nd5 {[%clk 0:02:57]} 4. Nf3 {[%clk 0:03:01]}  d6 {[%clk 0:02:57]} 5. Bc4 {[%clk 0:03:00]}  Nb6 {[%clk 0:02:55]} 6. e6 {[%clk 0:03:00]}  Bxe6 {[%clk 0:02:28]} 7. Bxe6 {[%clk 0:02:58]}  fxe6 {[%clk 0:02:29]} 8. Ng5 {[%clk 0:02:57]}  Qd7 {[%clk 0:02:28]} 9. Qf3 {[%clk 0:02:56]}  Qc6 {[%clk 0:01:54]} 10. Qf7+ {[%clk 0:02:54]}  Kd7 {[%clk 0:01:53]} 11. Qxe6+ {[%clk 0:02:53]}  Kc7 {[%clk 0:01:49]} 12. O-O {[%clk 0:02:51]}  N8d7 {[%clk 0:01:41]} 13. d4 {[%clk 0:02:49]}  Qd5 {[%clk 0:01:19]} 14. Na3 {[%clk 0:02:41]}  Re8 {[%clk 0:01:07]} 15. c4 {[%clk 0:02:22]}  Qxe6 {[%clk 0:01:04]} 16. Nxe6+ {[%clk 0:02:22]}  Kc8 {[%clk 0:01:04]} 17. d5 {[%clk 0:02:21]}  g6 {[%clk 0:00:52]} 18. b3 {[%clk 0:02:19]}  h5 {[%clk 0:00:51]} 19. Bb2 {[%clk 0:02:14]}  Rg8 {[%clk 0:00:50]} 20. Rfe1 {[%clk 0:02:10]}  Bh6 {[%clk 0:00:50]} 21. f4 {[%clk 0:02:06]}  Nf8 {[%clk 0:00:48]} 22. g3 {[%clk 0:01:58]}  a6 {[%clk 0:00:49]} 23. Nc2 {[%clk 0:01:50]}  Nbd7 {[%clk 0:00:47]} 24. Nxf8 {[%clk 0:01:46]}  Nxf8 {[%clk 0:00:45]} 25. Re2 {[%clk 0:01:40]}  Bg7 {[%clk 0:00:43]} 26. Bxg7 {[%clk 0:01:38]}  Rxg7 {[%clk 0:00:44]} 27. Rae1 {[%clk 0:01:38]}  Kd7 {[%clk 0:00:45]} 28. a3 {[%clk 0:01:28]}  e6 {[%clk 0:00:44]} 29. b4 {[%clk 0:01:27]}  cxb4 {[%clk 0:00:43]} 30. axb4 {[%clk 0:01:27]}  Rge7 {[%clk 0:00:43]} 31. dxe6+ {[%clk 0:01:21]}  Rxe6 {[%clk 0:00:43]} 32. Kf2 {[%clk 0:01:20]}  Rc8 {[%clk 0:00:36]} 33. Ne3 {[%clk 0:01:16]}  Re4 {[%clk 0:00:25]} 34. Rd2 {[%clk 0:01:14]}  Ne6 {[%clk 0:00:24]} 35. Red1 {[%clk 0:01:13]}  Rc6 {[%clk 0:00:21]} 36. b5 {[%clk 0:01:07]}  axb5 {[%clk 0:00:19]} 37. cxb5 {[%clk 0:01:07]}  Rb6 {[%clk 0:00:19]} 38. Nd5 {[%clk 0:01:07]}  Rxb5 {[%clk 0:00:13]} 39. Nf6+ {[%clk 0:01:07]}  Ke7 {[%clk 0:00:14]} 40. Nxe4 {[%clk 0:01:07]} 1-0


[Site "https://www.chess.com"]

[Event "Titled Tuesday Blitz April 4 Late 2023"]
[White "Tifferet, Shaked"]
[Black "Schuster, Karsten"]
[WhiteFideId "2811529"]
[BlackFideId "4611071"]
[WhiteElo "2142"]
[BlackElo "2294"]
[Result "0-1"]
[Round "02"]
[TimeControl "180+2"]
[Date "2023.04.04"]
[WhiteClock "0:00:12"]
[BlackClock "0:00:08"]

1. h3 {[%clk 0:02:59]}  d5 {[%clk 0:02:56]} 2. c3 {[%clk 0:02:59]}  c5 {[%clk 0:02:56]} 3. d4 {[%clk 0:02:57]}  cxd4 {[%clk 0:02:56]} 4. cxd4 {[%clk 0:02:58]}  Bf5 {[%clk 0:02:55]} 5. Nc3 {[%clk 0:02:56]}  e6 {[%clk 0:02:54]} 6. Qb3 {[%clk 0:02:53]}  Nc6 {[%clk 0:02:52]} 7. Qxb7 {[%clk 0:02:50]}  Nge7 {[%clk 0:02:40]} 8. e3 {[%clk 0:02:45]}  Rb8 {[%clk 0:02:40]} 9. Qa6 {[%clk 0:02:44]}  Rb6 {[%clk 0:02:40]} 10. Qa4 {[%clk 0:02:42]}  Nc8 {[%clk 0:02:28]} 11. Bb5 {[%clk 0:02:34]}  Qc7 {[%clk 0:02:28]} 12. Nf3 {[%clk 0:02:28]}  Bd6 {[%clk 0:02:26]} 13. Bxc6+ {[%clk 0:02:21]}  Rxc6 {[%clk 0:02:23]} 14. Bd2 {[%clk 0:02:14]}  Nb6 {[%clk 0:02:21]} 15. Qa5 {[%clk 0:02:07]}  Bd3 {[%clk 0:02:19]} 16. Nb5 {[%clk 0:02:03]}  Bxb5 {[%clk 0:02:17]} 17. Qxb5 {[%clk 0:02:04]}  O-O {[%clk 0:02:16]} 18. O-O {[%clk 0:02:03]}  Nc4 {[%clk 0:02:16]} 19. b3 {[%clk 0:01:34]}  Rb8 {[%clk 0:02:14]} 20. Qa4 {[%clk 0:01:35]}  Nxd2 {[%clk 0:01:32]} 21. Nxd2 {[%clk 0:01:36]}  Rb4 {[%clk 0:01:32]} 22. Qa3 {[%clk 0:01:36]}  Rxd4 {[%clk 0:01:31]} 23. Qb2 {[%clk 0:01:36]}  Rb4 {[%clk 0:01:25]} 24. Rac1 {[%clk 0:01:35]}  Rbb6 {[%clk 0:01:22]} 25. Nf3 {[%clk 0:01:29]}  Rxc1 {[%clk 0:01:21]} 26. Rxc1 {[%clk 0:01:28]}  Rc6 {[%clk 0:01:21]} 27. Rxc6 {[%clk 0:01:28]}  Qxc6 {[%clk 0:01:22]} 28. g3 {[%clk 0:01:19]}  Bb4 {[%clk 0:01:17]} 29. Nd4 {[%clk 0:01:14]}  Qc5 {[%clk 0:01:06]} 30. Nc2 {[%clk 0:00:58]}  Bc3 {[%clk 0:01:05]} 31. Qa3 {[%clk 0:00:53]}  Qxa3 {[%clk 0:01:02]} 32. Nxa3 {[%clk 0:00:54]}  a6 {[%clk 0:01:01]} 33. Kf1 {[%clk 0:00:40]}  Kf8 {[%clk 0:01:02]} 34. Ke2 {[%clk 0:00:40]}  Ke7 {[%clk 0:01:02]} 35. Nb1 {[%clk 0:00:39]}  Bb4 {[%clk 0:01:01]} 36. a3 {[%clk 0:00:38]}  Bc5 {[%clk 0:00:55]} 37. b4 {[%clk 0:00:35]}  Bd6 {[%clk 0:00:54]} 38. Nc3 {[%clk 0:00:34]}  Kd7 {[%clk 0:00:54]} 39. Kd3 {[%clk 0:00:29]}  Kc6 {[%clk 0:00:54]} 40. e4 {[%clk 0:00:27]}  a5 {[%clk 0:00:46]} 41. exd5+ {[%clk 0:00:18]}  exd5 {[%clk 0:00:44]} 42. b5+ {[%clk 0:00:16]}  Kc5 {[%clk 0:00:05]} 43. a4 {[%clk 0:00:16]}  Be5 {[%clk 0:00:05]} 44. Na2 {[%clk 0:00:15]}  Bb2 {[%clk 0:00:04]} 45. Kc2 {[%clk 0:00:14]}  Bd4 {[%clk 0:00:04]} 46. Kb3 {[%clk 0:00:12]}  Bxf2 {[%clk 0:00:04]} 47. g4 {[%clk 0:00:11]}  Bg3 {[%clk 0:00:04]} 48. Nc1 {[%clk 0:00:12]}  Be5 {[%clk 0:00:04]} 49. Nd3+ {[%clk 0:00:12]}  Kd4 {[%clk 0:00:04]} 50. Ne1 {[%clk 0:00:08]}  Bg3 {[%clk 0:00:04]} 51. Ng2 {[%clk 0:00:05]}  Ke4 {[%clk 0:00:04]} 52. b6 {[%clk 0:00:05]}  d4 {[%clk 0:00:04]} 53. b7 {[%clk 0:00:05]}  d3 {[%clk 0:00:05]} 54. Kc3 {[%clk 0:00:06]}  Be5+ {[%clk 0:00:04]} 55. Kd2 {[%clk 0:00:06]}  Kd4 {[%clk 0:00:04]} 56. Ne1 {[%clk 0:00:06]}  Bf4+ {[%clk 0:00:03]} 57. Kd1 {[%clk 0:00:06]}  Kc3 {[%clk 0:00:03]} 58. Ng2 {[%clk 0:00:06]}  Be5 {[%clk 0:00:02]} 59. Ne3 {[%clk 0:00:06]}  Kb4 {[%clk 0:00:02]} 60. Nf5 {[%clk 0:00:05]}  g6 {[%clk 0:00:02]} 61. Ne7 {[%clk 0:00:05]}  Kxa4 {[%clk 0:00:01]} 62. Nc6 {[%clk 0:00:05]}  Bc7 {[%clk 0:00:02]} 63. b8=Q {[%clk 0:00:04]}  Bxb8 {[%clk 0:00:02]} 64. Nxb8 {[%clk 0:00:05]}  Kb3 {[%clk 0:00:02]} 65. Nd7 {[%clk 0:00:06]}  a4 {[%clk 0:00:03]} 66. Nc5+ {[%clk 0:00:06]}  Kb4 {[%clk 0:00:03]} 67. Nxd3+ {[%clk 0:00:07]}  Kc3 {[%clk 0:00:03]} 68. Nc1 {[%clk 0:00:08]}  a3 {[%clk 0:00:03]} 69. Ne2+ {[%clk 0:00:09]}  Kb2 {[%clk 0:00:03]} 70. Kd2 {[%clk 0:00:08]}  a2 {[%clk 0:00:03]} 71. Nc1 {[%clk 0:00:09]}  a1=Q {[%clk 0:00:03]} 72. Nd3+ {[%clk 0:00:10]}  Kb3 {[%clk 0:00:03]} 73. Nc5+ {[%clk 0:00:11]}  Kc4 {[%clk 0:00:03]} 74. Ne4 {[%clk 0:00:11]}  Qd4+ {[%clk 0:00:04]} 75. Ke2 {[%clk 0:00:10]}  Qxe4+ {[%clk 0:00:05]} 76. Kf2 {[%clk 0:00:11]}  Qf4+ {[%clk 0:00:05]} 77. Kg2 {[%clk 0:00:12]}  Kd3 {[%clk 0:00:06]} 78. h4 {[%clk 0:00:12]}  Ke2 {[%clk 0:00:06]} 79. h5 {[%clk 0:00:13]}  Qxg4+ {[%clk 0:00:07]} 80. Kh2 {[%clk 0:00:12]}  Kf2 {[%clk 0:00:07]} 81. Kh1 {[%clk 0:00:12]}  Qh4# {[%clk 0:00:08]} 0-1


[Site "https://www.chess.com"]

[Event "Titled Tuesday Blitz April 4 Late 2023"]
[White "Kujawski, Adam"]
[Black "Gubajdullin, Alexei"]
[WhiteFideId "1100920"]
[BlackFideId "4141202"]
[WhiteElo "2054"]
[BlackElo "2279"]
[Result "1/2-1/2"]
[Round "02"]
[TimeControl "180+2"]
[Date "2023.04.04"]
[WhiteClock "0:00:17"]
[BlackClock "0:01:30"]

1. e4 {[%clk 0:02:14]}  e5 {[%clk 0:02:57]} 2. Nf3 {[%clk 0:02:08]}  Nf6 {[%clk 0:02:57]} 3. d4 {[%clk 0:02:06]}  Nxe4 {[%clk 0:02:56]} 4. Bd3 {[%clk 0:02:07]}  d5 {[%clk 0:02:56]} 5. Nxe5 {[%clk 0:02:06]}  Nd7 {[%clk 0:02:55]} 6. Nxd7 {[%clk 0:02:06]}  Bxd7 {[%clk 0:02:55]} 7. O-O {[%clk 0:02:06]}  Be7 {[%clk 0:02:54]} 8. c4 {[%clk 0:02:06]}  c6 {[%clk 0:02:53]} 9. Nc3 {[%clk 0:01:59]}  Nxc3 {[%clk 0:02:50]} 10. bxc3 {[%clk 0:01:59]}  dxc4 {[%clk 0:02:49]} 11. Bxc4 {[%clk 0:01:59]}  O-O {[%clk 0:02:50]} 12. Qf3 {[%clk 0:01:58]}  Bf6 {[%clk 0:02:43]} 13. a4 {[%clk 0:01:55]}  Qc8 {[%clk 0:02:42]} 14. Ba3 {[%clk 0:01:52]}  Re8 {[%clk 0:02:42]} 15. Rfe1 {[%clk 0:01:50]}  Be6 {[%clk 0:02:33]} 16. Bxe6 {[%clk 0:01:25]}  Rxe6 {[%clk 0:02:33]} 17. Re4 {[%clk 0:01:18]}  Rxe4 {[%clk 0:02:24]} 18. Qxe4 {[%clk 0:01:17]}  Qe8 {[%clk 0:02:24]} 19. Qxe8+ {[%clk 0:01:02]}  Rxe8 {[%clk 0:02:23]} 20. Kf1 {[%clk 0:01:02]}  b6 {[%clk 0:02:20]} 21. Rb1 {[%clk 0:01:01]}  h5 {[%clk 0:02:17]} 22. a5 {[%clk 0:01:00]}  b5 {[%clk 0:02:17]} 23. a6 {[%clk 0:00:56]}  Be7 {[%clk 0:02:13]} 24. Bxe7 {[%clk 0:00:20]}  Rxe7 {[%clk 0:02:13]} 25. c4 {[%clk 0:00:21]}  bxc4 {[%clk 0:02:00]} 26. Rb8+ {[%clk 0:00:21]}  Kh7 {[%clk 0:01:58]} 27. Rb7 {[%clk 0:00:22]}  Re4 {[%clk 0:01:55]} 28. Rxa7 {[%clk 0:00:22]}  Rxd4 {[%clk 0:01:45]} 29. Rc7 {[%clk 0:00:22]}  Rd1+ {[%clk 0:01:43]} 30. Ke2 {[%clk 0:00:22]}  Ra1 {[%clk 0:01:43]} 31. Rxc6 {[%clk 0:00:22]}  Ra2+ {[%clk 0:01:42]} 32. Kf3 {[%clk 0:00:21]}  c3 {[%clk 0:01:38]} 33. Rxc3 {[%clk 0:00:19]}  Rxa6 {[%clk 0:01:37]} 34. h4 {[%clk 0:00:19]}  Kg6 {[%clk 0:01:37]} 35. g3 {[%clk 0:00:20]}  f6 {[%clk 0:01:36]} 36. Re3 {[%clk 0:00:20]}  Ra5 {[%clk 0:01:36]} 37. Rd3 {[%clk 0:00:20]}  Kf5 {[%clk 0:01:36]} 38. Re3 {[%clk 0:00:20]}  g6 {[%clk 0:01:36]} 39. Rd3 {[%clk 0:00:20]}  Rb5 {[%clk 0:01:36]} 40. Re3 {[%clk 0:00:20]}  Rb4 {[%clk 0:01:35]} 41. Rd3 {[%clk 0:00:20]}  Rb5 {[%clk 0:01:34]} 42. Re3 {[%clk 0:00:20]}  Rc5 {[%clk 0:01:34]} 43. Rd3 {[%clk 0:00:20]}  Re5 {[%clk 0:01:34]} 44. Rc3 {[%clk 0:00:20]}  Rd5 {[%clk 0:01:34]} 45. Rb3 {[%clk 0:00:20]}  Rc5 {[%clk 0:01:34]} 46. Ra3 {[%clk 0:00:20]}  g5 {[%clk 0:01:34]} 47. hxg5 {[%clk 0:00:19]}  fxg5 {[%clk 0:01:34]} 48. Kg2 {[%clk 0:00:19]}  Rb5 {[%clk 0:01:31]} 49. Rc3 {[%clk 0:00:19]}  Rd5 {[%clk 0:01:31]} 50. Rc4 {[%clk 0:00:18]}  Ke5 {[%clk 0:01:30]} 51. Rb4 {[%clk 0:00:18]}  Kf5 {[%clk 0:01:29]} 52. Ra4 {[%clk 0:00:18]}  Re5 {[%clk 0:01:29]} 53. Rb4 {[%clk 0:00:19]}  Re4 {[%clk 0:01:29]} 54. Rb5+ {[%clk 0:00:14]}  Re5 {[%clk 0:01:28]} 55. Rxe5+ {[%clk 0:00:13]}  Kxe5 {[%clk 0:01:27]} 56. f4+ {[%clk 0:00:14]}  gxf4 {[%clk 0:01:26]} 57. gxf4+ {[%clk 0:00:14]}  Kxf4 {[%clk 0:01:26]} 58. Kh3 {[%clk 0:00:15]}  Kg5 {[%clk 0:01:26]} 59. Kg3 {[%clk 0:00:15]}  h4+ {[%clk 0:01:26]} 60. Kh3 {[%clk 0:00:16]}  Kh5 {[%clk 0:01:27]} 61. Kg2 {[%clk 0:00:15]}  Kg4 {[%clk 0:01:28]} 62. Kh2 {[%clk 0:00:16]}  h3 {[%clk 0:01:29]} 63. Kh1 {[%clk 0:00:16]}  Kh4 {[%clk 0:01:30]} 64. Kg1 {[%clk 0:00:16]}  Kg3 {[%clk 0:01:30]} 65. Kh1 {[%clk 0:00:17]}  h2 {[%clk 0:01:30]} 1/2-1/2


[Site "https://www.chess.com"]